[Event "FISU WUMSCC Men 2024"]
[Site "Entebbe"]
[Date "2024.06.28"]
[Round "6.7"]
[White "Alrehaili, Ahmed Abdullah S"]
[Black "Wagner, Gerald"]
[Result "1-0"]
[ECO "C96"]
[WhiteElo "2134"]
[BlackElo "1832"]
[Annotator "RC"]
[PlyCount "103"]
[EventDate "2024.06.24"]
[EventType "swiss"]
[EventCountry "UGA"]
[SourceTitle "playchess.com"]
[Source "ChessBase"]
[SourceQuality "1"]
[TimeControl "5400+30"]

1. e4 {[%emt 0:00:02]} e5 {[%emt 0:00:04]} 2. Nf3 {[%emt 0:00:08]} Nc6 {[%emt 0:00:07]} 3. Bc4 {[%emt 0:00:05]} Nf6 {[%emt 0:00:07]} 4. d3 {[%emt 0:00:04]} Be7 {[%emt 0:00:05]} 5. O-O {[%emt 0:00:16]} d6 {[%emt 0:00:05]} 6. c3 {[%emt 0:00:04]} O-O {[%emt 0:00:05]} 7. Nbd2 {[%emt 0:00:10]} Na5 {[%emt 0:00:07]} 8. Bb5 {[%emt 0:00:05]} a6 {[%emt 0:00:04]} 9. Ba4 {[%emt 0:00:02]} b5 {[%emt 0:00:05]} 10. Bc2 {[%emt 0:00:05]} c5 {[%emt 0:00:05]} 11. Re1 {[%emt 0:01:02]} Qc7 {[%emt 0:00:29]} 12. h3 {[%emt 0:01:50]} Nc6 {[%emt 0:00:52]} 13. d4 {[%emt 0:02:12]} cxd4 {[%emt 0:01:56]} 14. cxd4 {[%emt 0:01:28]} Nb4 {[%emt 0:01:10]} 15. Bb1 {[%emt 0:00:28]} a5 {[%emt 0:02:04]} 16. a3 {[%emt 0:01:20]} Na6 {[%emt 0:01:13]} 17. Nf1 {[%emt 0:00:47]} Be6 {[%emt 0:12:11]} 18. Be3 {[%emt 0:04:38]} a4 {[%emt 0:10:16]} 19. Bd3 {[%emt 0:05:01]} Bc4 {[%emt 0:13:45]} 20. Rc1 {[%emt 0:02:16]} Rfc8 {[%emt 0:00:08]} 21. N1d2 {[%emt 0:02:35]} exd4 {[%emt 0:03:00]} 22. Bxd4 {[%emt 0:05:42]} Nc5 {[%emt 0:02:30]} 23. Bxc4 {[%emt 0:00:42]} bxc4 {[%emt 0:00:15]} 24. Rxc4 {[%emt 0:00:55]} Qb7 {[%emt 0:00:51]} 25. Qe2 {[%emt 0:03:38]} Ne6 {[%emt 0:02:48]} 26. Bc3 {[%emt 0:01:31]} d5 {[%emt 0:00:52]} 27. exd5 {[%emt 0:06:02]} Nxd5 {[%emt 0:03:33]} 28. Qe4 {[%emt 0:07:02]} Qb5 {[%emt 0:06:07]} 29. Be5 {[%emt 0:21:36]} Nf6 {[%emt 0:03:07]} 30. Qc2 {[%emt 0:01:17]} Rd8 {[%emt 0:01:58]} 31. Nd4 {[%emt 0:02:41]} Nxd4 {[%emt 0:08:36]} 32. Bxd4 {[%emt 0:01:48]} Nd5 {[%emt 0:01:01]} 33. Ne4 {[%emt 0:03:25]} Nf4 {[%emt 0:01:52]} 34. Ng3 {[%emt 0:17:54]} Ne6 {[%emt 0:00:12]} 35. Nf5 {[%emt 0:01:05]} Bf8 {[%emt 0:02:20]} 36. Be3 {[%emt 0:01:24]} Rd5 {[%emt 0:01:29]} 37. Nd4 {[%emt 0:00:43]} Nxd4 {[%emt 0:01:15]} 38. Rxd4 {[%emt 0:00:03]} Rxd4 {[%emt 0:00:26]} 39. Bxd4 {[%emt 0:00:04]} h6 {[%emt 0:00:56]} 40. Bc3 {[%emt 0:02:57]} Rc8 {[%emt 0:00:48]} 41. Re4 {[%emt 0:00:24]} Ra8 {[%emt 0:05:44]} 42. Qd1 {[%emt 0:01:07]} Qc6 {[%emt 0:01:56]} 43. Rg4 {[%emt 0:00:30]} f6 {[%emt 0:02:19]} 44. Bxf6 {[%emt 0:02:06]} h5 {[%emt 0:04:13]} 45. Rg3 {[%emt 0:03:13]} Re8 {[%emt 0:01:07]} 46. Bc3 {[%emt 0:00:13]} h4 {[%emt 0:02:20]} 47. Rg4 {[%emt 0:00:06]} Qh6 {[%emt 0:01:42]} 48. Qd5+ {[%emt 0:00:28]} Re6 {[%emt 0:01:05]} 49. Re4 {[%emt 0:00:25]} Kf7 {[%emt 0:00:52]} 50. Qf5+ {[%emt 0:00:18]} Rf6 {[%emt 0:01:15]} 51. Bxf6 {[%emt 0:00:14]} gxf6 {[%emt 0:00:02]} 52. Qd5+ {[%emt 0:00:41]} 1-0

[Event "FISU WUMSCC Men 2024"]
[Site "Entebbe"]
[Date "2024.06.28"]
[Round "6.8"]
[White "Mthembu, Lovers"]
[Black "Alfaitori, Abdallah"]
[Result "1-0"]
[ECO "C01"]
[WhiteElo "1876"]
[BlackElo "1947"]
[Annotator "RC"]
[PlyCount "65"]
[EventDate "2024.06.24"]
[EventType "swiss"]
[EventCountry "UGA"]
[SourceTitle "playchess.com"]
[Source "ChessBase"]
[SourceQuality "1"]
[TimeControl "5400+30"]

1. e4 {[%emt 1:31:00]} e6 {[%emt 0:04:31]} 2. d4 {[%emt 0:00:00]} d5 {[%emt 0:00:21]} 3. exd5 {[%emt 0:00:00]} exd5 {[%emt 0:00:09]} 4. Bd3 {[%emt 0:00:00]} Bd6 {[%emt 0:00:22]} 5. Nf3 {[%emt 0:00:00]} Ne7 {[%emt 0:00:38]} 6. O-O {[%emt 0:00:00]} O-O {[%emt 0:00:27]} 7. Re1 {[%emt 0:00:00]} Bf5 {[%emt 0:00:40]} 8. Nc3 {[%emt 0:00:00]} c6 {[%emt 0:02:06]} 9. Bg5 {[%emt 0:00:00]} Bg4 {[%emt 0:02:28]} 10. Bh4 {[%emt 0:00:00]} h6 {[%emt 0:05:42]} 11. Bg3 {[%emt 0:00:00]} Bxg3 {[%emt 0:03:29]} 12. hxg3 {[%emt 0:00:00]} Nd7 {[%emt 0:04:29]} 13. Qd2 {[%emt 0:00:00]} Bxf3 {[%emt 0:01:19]} 14. gxf3 {[%emt 0:00:00]} Nf6 {[%emt 0:06:10]} 15. Kg2 {[%emt 0:00:00]} Qd7 {[%emt 0:08:15]} 16. Ne2 {[%emt 0:00:00]} Rfe8 {[%emt 0:05:46]} 17. Rh1 {[%emt 0:00:00]} Ng6 {[%emt 0:03:41]} 18. Nf4 {[%emt 0:00:00]} Nxf4+ {[%emt 0:04:36]} 19. Qxf4 {[%emt 0:00:00]} Nh7 {[%emt 0:12:33]} 20. Rh5 {[%emt 0:00:00]} Qe6 {[%emt 0:07:15]} 21. Rah1 {[%emt 0:00:00]} Nf8 {[%emt 0:07:20]} 22. Re5 {[%emt 0:00:00]} Ng6 {[%emt 0:02:07]} 23. Bxg6 {[%emt 0:00:00]} Qxg6 {[%emt 0:00:02]} 24. Rf5 {[%emt 0:00:00]} Re7 {[%emt 0:02:22]} 25. Rh4 {[%emt 0:00:00]} Rae8 {[%emt 0:00:56]} 26. Rg4 {[%emt 0:00:00]} Qh7 {[%emt 0:01:20]} 27. Rf6 {[%emt 0:00:00]} Kf8 {[%emt 0:03:22]} 28. Rd6 {[%emt 0:00:00]} Qxc2 {[%emt 0:05:13]} 29. Rxg7 {[%emt 0:00:00]} Kxg7 {[%emt 0:02:59]} 30. Qxh6+ {[%emt 0:00:00]} Kg8 {[%emt 0:00:20]} 31. Qg5+ {[%emt 0:00:00]} Kf8 {[%emt 0:04:28]} 32. Rh6 {[%emt 0:00:00]} f5 {[%emt 0:00:31]} 33. Qf6+ {[%emt 0:00:00]} 1-0

[Event "FISU WUMSCC Men 2024"]
[Site "Entebbe"]
[Date "2024.06.28"]
[Round "6.9"]
[White "Almuntasir, mohamed khalifah"]
[Black "Selepe, Lwazi"]
[Result "1-0"]
[ECO "B31"]
[WhiteElo "1724"]
[BlackElo "1913"]
[Annotator "RC"]
[PlyCount "63"]
[EventDate "2024.06.24"]
[EventType "swiss"]
[EventCountry "UGA"]
[SourceTitle "playchess.com"]
[Source "ChessBase"]
[SourceQuality "1"]
[TimeControl "5400+30"]

1. e4 {[%emt 0:01:52]} c5 {[%emt 0:00:12]} 2. Nf3 {[%emt 0:00:08]} Nc6 {[%emt 0:00:07]} 3. Bb5 {[%emt 0:00:14]} g6 {[%emt 0:00:08]} 4. O-O {[%emt 0:00:24]} Bg7 {[%emt 0:00:14]} 5. Re1 {[%emt 0:00:11]} a6 {[%emt 0:00:21]} 6. Bf1 {[%emt 0:00:08]} Nf6 {[%emt 0:00:15]} 7. d3 {[%emt 0:00:15]} O-O {[%emt 0:00:08]} 8. h3 {[%emt 0:00:50]} d6 {[%emt 0:00:26]} 9. Be3 {[%emt 0:00:19]} b5 {[%emt 0:00:20]} 10. a4 {[%emt 0:00:15]} Bb7 {[%emt 0:00:18]} 11. Nbd2 {[%emt 0:01:15]} Nd7 {[%emt 0:00:17]} 12. axb5 {[%emt 0:01:30]} axb5 {[%emt 0:00:04]} 13. Rxa8 {[%emt 0:00:15]} Qxa8 {[%emt 0:00:03]} 14. Qa1 {[%emt 0:00:48]} Qxa1 {[%emt 0:00:24]} 15. Rxa1 {[%emt 0:00:03]} Nb6 {[%emt 0:04:01]} 16. c3 {[%emt 0:03:22]} Ra8 {[%emt 0:04:46]} 17. Rxa8+ {[%emt 0:00:34]} Bxa8 {[%emt 0:00:03]} 18. d4 {[%emt 0:02:11]} cxd4 {[%emt 0:03:09]} 19. cxd4 {[%emt 0:00:11]} Na7 {[%emt 0:01:34]} 20. d5 {[%emt 0:01:47]} Nbc8 {[%emt 0:00:06]} 21. Nd4 {[%emt 0:00:22]} b4 {[%emt 0:00:53]} 22. f3 {[%emt 0:00:53]} Bb7 {[%emt 0:00:22]} 23. N2b3 {[%emt 0:00:24]} e6 {[%emt 0:01:29]} 24. Na5 {[%emt 0:00:27]} Ba8 {[%emt 0:00:03]} 25. dxe6 {[%emt 0:00:49]} fxe6 {[%emt 0:00:03]} 26. Nxe6 {[%emt 0:00:45]} Bxb2 {[%emt 0:00:56]} 27. Nc7 {[%emt 0:00:15]} Nc6 {[%emt 0:00:39]} 28. Nc4 {[%emt 0:01:14]} Bc3 {[%emt 0:01:44]} 29. Nxa8 {[%emt 0:00:21]} b3 {[%emt 0:00:05]} 30. Nd2 {[%emt 0:02:11]} b2 {[%emt 0:00:35]} 31. Nb1 {[%emt 0:00:23]} Bb4 {[%emt 0:00:11]} 32. Nc7 {[%emt 0:00:58]} 1-0

[Event "FISU WUMSCC Men 2024"]
[Site "Entebbe"]
[Date "2024.06.28"]
[Round "6.10"]
[White "Janik, Igor"]
[Black "Alshnaiber, Yazeed"]
[Result "1-0"]
[ECO "A11"]
[WhiteElo "2511"]
[BlackElo "1831"]
[Annotator "TA"]
[PlyCount "89"]
[EventDate "2024.06.24"]
[EventType "swiss"]
[EventCountry "UGA"]
[SourceTitle "playchess.com"]
[Source "ChessBase"]
[SourceQuality "1"]
[TimeControl "5400+30"]

{[%evp 10,89,26,22,30,20,106,52,60,18,29,14,21,-7,-6,-17,-28,-31,-17,-29,-30,-37,-1,-29,-30,-53,-50,-64,-29,-64,-44,-94,-90,-98,-73,-86,-97,-87,-79,-72,-73,-75,-65,-70,-43,-62,-34,-29,85,0,-16,-12,14,4,10,9,22,0,25,0,0,0,0,0,0,0,18,12,22,0,46,40,31,34,53,47,81,52,58,65,177,190]} 1. Nf3 {[%emt 0:00:02]} d5 {[%emt 0:03:57]} 2. g3 {[%emt 0:00:05]} Nf6 {[%emt 0:03:14]} 3. Bg2 {[%emt 1:31:53]} Bf5 {[%emt 0:04:07]} 4. c4 {[%emt 0:00:00]} c6 {[%emt 0:03:56]} 5. Qb3 {[%emt 0:00:00]} Qb6 {[%emt 0:04:02]} 6. d3 {[%emt 0:00:00]} e6 {[%emt 0:04:48]} 7. Be3 {[%emt 0:00:00]} c5 {[%emt 0:07:18]} (7... Qxb3 $11 {remains equal.} 8. axb3 a6) 8. cxd5 {[%emt 0:00:00]} (8. Nh4 $16) 8... exd5 $14 {[%emt 0:00:10] White is slightly better.} 9. O-O {[%emt 0:00:00]} Nc6 {[%emt 0:07:03]} 10. Rc1 {[%emt 0:00:00]} Be7 {[%emt 0:03:56]} 11. Bg5 {[%emt 0:00:00]} O-O {[%emt 0:07:04]} 12. Nc3 {[%emt 0:00:00]} Qxb3 {[%emt 0:15:53]} 13. axb3 {[%emt 0:00:00][%cal Oe2e4]} h6 {[%emt 0:00:04]} 14. Bf4 {[%emt 0:00:00]} g5 {[%emt 0:00:52]} 15. Bd2 {[%emt 0:00:00]} Kg7 {[%emt 0:11:42]} 16. Be1 {[%emt 0:00:00]} Rfd8 {[%emt 0:02:04]} 17. h4 {[%emt 0:00:00]} g4 $36 {[%emt 0:00:38][%mdl 2048] Black has the initiative.} 18. Nd2 {[%emt 0:00:00]} Nd4 {[%emt 0:00:48]} (18... Be6 $5) 19. Kf1 {[%emt 0:00:00]} b6 {[%emt 0:05:50]} 20. Nd1 {[%emt 0:00:00]} (20. Kg1 $15) 20... a5 $17 {[%emt 0:01:08]} 21. Ne3 {[%emt 0:00:00]} Be6 {[%emt 0:00:07]} 22. Nc2 {[%emt 0:00:00]} Nxc2 {[%emt 0:02:29]} 23. Rxc2 {[%emt 0:00:00]} Rab8 {[%emt 0:00:18]} 24. Nb1 {[%emt 0:00:00][%cal Bd2b1,Bb1a3,Ba3b5,Bb5d4][%mdl 32]} Nd7 {[%emt 0:03:05]} 25. Na3 {[%emt 0:00:00]} Ne5 {[%emt 0:00:47]} 26. Bd2 {[%emt 0:00:00]} Nc6 {[%emt 0:01:22]} 27. Nb5 {[%emt 0:00:00]} Bf6 {[%emt 0:01:38]} 28. Bf4 $1 {[%emt 0:00:00]} Be5 {[%emt 0:00:05] [#]} (28... Rbc8 $11 {keeps the balance.}) 29. Bxe5+ {[%emt 0:00:00]} (29. Na7 $1 $16 {[%cal Ra7c6]} Bxf4 30. Nxc6) 29... Nxe5 $11 {[%emt 0:00:02][%cal Bc6e5,Be5d7,Bd7c5][%mdl 32]} 30. d4 {[%emt 0:00:00]} Nd7 {[%emt 0:01:53]} 31. Rc3 {[%emt 0:00:00]} cxd4 {[%emt 0:02:45]} 32. Nxd4 {[%emt 0:00:00]} Rbc8 {[%emt 0:00:29]} 33. Rac1 {[%emt 0:00:00]} Nc5 {[%emt 0:00:15]} 34. f4 {[%emt 0:00:00]} gxf3 {[%emt 0:00:43]} 35. Bxf3 {[%emt 0:00:00]} Kf6 {[%emt 0:00:34]} 36. Kf2 {[%emt 0:00:00]} Rg8 {[%emt 0:00:26]} 37. Rd1 {[%emt 0:00:00]} Rcd8 {[%emt 0:00:44]} 38. Re3 {[%emt 0:00:00]} Rg7 {[%emt 0:00:55]} 39. Bg2 {[%emt 0:00:00]} Rgg8 {[%emt 0:00:25]} (39... Rg4 $11 {deserves consideration.}) 40. Rf3+ {[%emt 0:00:00]} Kg6 {[%emt 0:00:47]} 41. Rf4 {[%emt 0:00:00]} Rge8 {[%emt 0:00:40]} 42. Bf3 {[%emt 0:00:00]} Bc8 {[%emt 0:01:31]} 43. Nc6 {[%emt 0:00:00]} Rd6 {[%emt 0:00:06]} 44. Bxd5 {[%emt 0:00:00]} f5 {[%emt 0:01:16] [#]} (44... Be6 $14 45. Bxe6 Rdxe6) 45. Bf7+ $1 {[%emt 0:00:00][%mdl 512] Weighted Error Value: White=0.14 (very precise) /Black=0.21 (precise) .  Mistake:       	White=3     	Black=4      Inaccurate:     	White=5     	Black=6      OK:         	White=11    	Black=12     Best:        	White=2     	---        Strong:       	White=1     	---} 1-0

[Event "FISU WUMSCC Men 2024"]
[Site "Entebbe"]
[Date "2024.06.28"]
[Round "6.11"]
[White "Musasizi, Emmanuel"]
[Black "Alinda Collins"]
[Result "1/2-1/2"]
[ECO "A47"]
[WhiteElo "1966"]
[BlackElo "1845"]
[Annotator "RC"]
[PlyCount "162"]
[EventDate "2024.06.24"]
[EventType "swiss"]
[EventCountry "UGA"]
[SourceTitle "playchess.com"]
[Source "ChessBase"]
[SourceQuality "1"]
[TimeControl "5400+30"]

1. d4 {[%emt 0:00:57]} Nf6 {[%emt 0:00:38]} 2. Nf3 {[%emt 0:00:13]} e6 {[%emt 0:00:23]} 3. e3 {[%emt 0:00:08]} b6 {[%emt 0:02:20]} 4. Be2 {[%emt 0:00:17]} Bb7 {[%emt 0:00:14]} 5. O-O {[%emt 0:00:07]} Be7 {[%emt 0:00:18]} 6. b3 {[%emt 0:00:09]} d6 {[%emt 0:00:32]} 7. Bb2 {[%emt 0:00:17]} Nbd7 {[%emt 0:00:16]} 8. Nbd2 {[%emt 0:00:11]} O-O {[%emt 0:00:38]} 9. c4 {[%emt 0:00:11]} c5 {[%emt 0:00:14]} 10. Rc1 {[%emt 0:00:49]} Rc8 {[%emt 0:00:05]} 11. Re1 {[%emt 0:00:50]} Re8 {[%emt 0:03:29]} 12. Bd3 {[%emt 0:03:00]} h6 {[%emt 0:03:40]} 13. Bb1 {[%emt 0:00:22]} a6 {[%emt 0:03:42]} 14. Qe2 {[%emt 0:01:05]} Qc7 {[%emt 0:02:58]} 15. h3 {[%emt 0:01:24]} Bd8 {[%emt 0:03:41]} 16. e4 {[%emt 0:01:34]} cxd4 {[%emt 0:00:51]} 17. Nxd4 {[%emt 0:00:11]} Ne5 {[%emt 0:04:29]} 18. Nf1 {[%emt 0:06:58]} Ng6 {[%emt 0:02:48]} 19. Ng3 {[%emt 0:01:06]} Qe7 {[%emt 0:01:55]} 20. Ba3 {[%emt 0:01:37]} Qc7 {[%emt 0:00:40]} 21. Qe3 {[%emt 0:01:06]} Nd7 {[%emt 0:02:07]} 22. Nh5 {[%emt 0:07:22]} Nf6 {[%emt 0:04:05]} 23. Ng3 {[%emt 0:03:05]} Nd7 {[%emt 0:00:26]} 24. Rcd1 {[%emt 0:01:56]} Bg5 {[%emt 0:00:25]} 25. Qe2 {[%emt 0:06:01]} Nde5 {[%emt 0:03:53]} 26. Nh5 {[%emt 0:01:26]} Rcd8 {[%emt 0:01:13]} 27. g3 {[%emt 0:00:52]} Nc6 {[%emt 0:02:59]} 28. Nxc6 {[%emt 0:11:13]} Qxc6 {[%emt 0:01:05]} 29. f4 {[%emt 0:00:39]} Be7 {[%emt 0:00:35]} 30. Qg4 {[%emt 0:02:00]} Kh7 {[%emt 0:03:05]} 31. Rd2 {[%emt 0:05:06]} f5 {[%emt 0:09:50]} 32. Qf3 {[%emt 0:03:04]} Bf6 {[%emt 0:00:49]} 33. Nxf6+ {[%emt 0:00:28]} gxf6 {[%emt 0:00:09]} 34. Kh2 {[%emt 0:01:03]} fxe4 {[%emt 0:02:49]} 35. Bxe4 {[%emt 0:04:17]} d5 {[%emt 0:01:42]} 36. cxd5 {[%emt 0:04:29]} exd5 {[%emt 0:00:09]} 37. Bxg6+ {[%emt 0:00:31]} Kxg6 {[%emt 0:00:08]} 38. Qg4+ {[%emt 0:00:48]} Kh7 {[%emt 0:00:47]} 39. Qf5+ {[%emt 0:00:35]} Kg7 {[%emt 0:00:43]} 40. Qg4+ {[%emt 0:00:55]} Kh7 {[%emt 0:02:32]} 41. Rde2 {[%emt 0:03:09]} Rxe2+ {[%emt 0:00:57]} 42. Qxe2 {[%emt 0:00:45]} Rd7 {[%emt 0:00:52]} 43. Rc1 {[%emt 0:00:58]} Qb5 {[%emt 0:02:50]} 44. Qxb5 {[%emt 0:02:10]} axb5 {[%emt 0:00:08]} 45. Bb2 {[%emt 0:00:05]} d4 {[%emt 0:00:37]} 46. Rd1 {[%emt 0:00:23]} d3 {[%emt 0:00:48]} 47. Bxf6 {[%emt 0:01:12]} b4 {[%emt 0:00:09]} 48. Rd2 {[%emt 0:00:30]} Kg6 {[%emt 0:01:28]} 49. Be5 {[%emt 0:00:59]} Kf5 {[%emt 0:00:10]} 50. Kg1 {[%emt 0:00:09]} h5 {[%emt 0:01:13]} 51. Kf2 {[%emt 0:00:33]} Ke4 {[%emt 0:01:16]} 52. Bb2 {[%emt 0:00:34]} Rc7 {[%emt 0:00:59]} 53. Ke1 {[%emt 0:06:01]} Bc8 {[%emt 0:00:42]} 54. Rh2 {[%emt 0:01:22]} Kf3 {[%emt 0:00:30]} 55. Rf2+ {[%emt 0:01:48]} Kxg3 {[%emt 0:00:38]} 56. f5 {[%emt 0:00:42]} Re7+ {[%emt 0:01:30]} 57. Kf1 {[%emt 0:00:40]} Rf7 {[%emt 0:00:51]} 58. Be5+ {[%emt 0:00:44]} Kxh3 {[%emt 0:00:59]} 59. f6 {[%emt 0:00:04]} Kg4 {[%emt 0:01:03]} 60. Ke1 {[%emt 0:00:33]} Kg5 {[%emt 0:02:32]} 61. Kd2 {[%emt 0:00:34]} Bf5 {[%emt 0:01:26]} 62. Rg2+ {[%emt 0:00:16]} Kh6 {[%emt 0:02:44]} 63. Rf2 {[%emt 0:01:00]} Bg6 {[%emt 0:00:22]} 64. Bd6 {[%emt 0:01:12]} Kh7 {[%emt 0:06:06]} 65. Be7 {[%emt 0:01:17]} Kh6 {[%emt 0:00:52]} 66. Rf4 {[%emt 0:00:17]} Kg5 {[%emt 0:00:24]} 67. Rf2 {[%emt 0:00:44]} h4 {[%emt 0:00:48]} 68. Bxb4 {[%emt 0:02:58]} h3 {[%emt 0:01:41]} 69. Bd6 {[%emt 0:00:34]} Rd7 {[%emt 0:00:59]} 70. Be7 {[%emt 0:00:53]} Bf7 {[%emt 0:00:25]} 71. Rf1 {[%emt 0:00:35]} Kg4 {[%emt 0:01:52]} 72. Rg1+ {[%emt 0:01:05]} Kf3 {[%emt 0:00:17]} 73. Rg7 {[%emt 0:00:24]} h2 {[%emt 0:00:53]} 74. Rh7 {[%emt 0:00:11]} Kg2 {[%emt 0:00:17]} 75. Rg7+ {[%emt 0:00:17]} Kf1 {[%emt 0:00:52]} 76. Rh7 {[%emt 0:00:40]} Kg2 {[%emt 0:00:24]} 77. Rg7+ {[%emt 0:00:16]} Kf1 {[%emt 0:00:07]} 78. Rh7 {[%emt 0:13:12]} Kg2 {[%emt 0:00:09]} 79. Rg7+ {[%emt 0:00:32]} Kf1 {[%emt 0:00:08]} 80. Rh7 {[%emt 0:00:26]} Kg2 {[%emt 0:00:07]} 81. Rg7+ {[%emt 0:00:02]} Kf1 {[%emt 0:00:11]} 1/2-1/2